[Event "*** Titled Tuesday 3|2 Blitz"]
[Site "Chess.com"]
[Date "2016.05.03"]
[Round "9"]
[White "cool64chess"]
[Black "AndrewMcStone"]
[Result "1-0"]
[WhiteElo "2198"]
[BlackElo "1982"]
[TimeControl "180+2"]
[EndTime "12:59:53 PDT"]
[Termination "cool64chess won by checkmate"]

1. d4 {[%clk 0:03:01.9]} 1... Nf6 {[%clk 0:02:49]} 2. c4 {[%clk 0:03:01]} 2...
Nc6 {[%clk 0:02:49.7]} 3. Nf3 {[%clk 0:03:01.4]} 3... e6 {[%clk 0:02:50.7]} 4.
d5 {[%clk 0:03:00]} 4... Bb4+ {[%clk 0:02:42.5]} 5. Bd2 {[%clk 0:02:42]} 5...
Bxd2+ {[%clk 0:02:26.8]} 6. Qxd2 {[%clk 0:02:38.5]} 6... exd5 {[%clk 0:02:27.7]}
7. cxd5 {[%clk 0:02:36]} 7... Ne7 {[%clk 0:02:28.6]} 8. Nc3 {[%clk 0:02:36.2]}
8... d6 {[%clk 0:02:20.2]} 9. g3 {[%clk 0:02:36.1]} 9... Bf5 {[%clk 0:02:08.1]}
10. Bg2 {[%clk 0:02:32.3]} 10... O-O {[%clk 0:02:08.4]} 11. O-O {[%clk
0:02:23.1]} 11... Ne4 {[%clk 0:02:05.7]} 12. Qf4 {[%clk 0:02:17.5]} 12... Nxc3
{[%clk 0:01:59.3]} 13. bxc3 {[%clk 0:02:17.4]} 13... Qd7 {[%clk 0:01:52.9]} 14.
Rfd1 {[%clk 0:02:13.7]} 14... Ng6 {[%clk 0:01:40.9]} 15. Qd4 {[%clk 0:02:12.7]}
15... Rfe8 {[%clk 0:01:35.7]} 16. e3 {[%clk 0:02:01.7]} 16... Re4 {[%clk
0:01:20.2]} 17. Qd2 {[%clk 0:02:00]} 17... Re7 {[%clk 0:00:50.4]} 18. Nd4 {[%clk
0:01:46]} 18... Be4 {[%clk 0:00:42.6]} 19. Bxe4 {[%clk 0:01:32.5]} 19... Rxe4
{[%clk 0:00:43.2]} 20. f3 {[%clk 0:01:32.9]} 20... Re5 {[%clk 0:00:25.9]} 21. e4
{[%clk 0:01:29.3]} 21... Rae8 {[%clk 0:00:19.2]} 22. Rab1 {[%clk 0:01:23.5]}
22... b6 {[%clk 0:00:19.5]} 23. Nc6 {[%clk 0:01:21]} 23... Rh5 {[%clk
0:00:19.4]} 24. Nxa7 {[%clk 0:00:56.5]} 24... Ne5 {[%clk 0:00:18.6]} 25. Qg2
{[%clk 0:00:52.9]} 25... f5 {[%clk 0:00:17.1]} 26. Re1 {[%clk 0:00:16.2]} 26...
Rf8 {[%clk 0:00:10.8]} 27. f4 {[%clk 0:00:13.5]} 27... Ng4 {[%clk 0:00:11.8]}
28. h3 {[%clk 0:00:12.8]} 28... Nf6 {[%clk 0:00:11]} 29. e5 {[%clk 0:00:13.6]}
29... Ne4 {[%clk 0:00:12.1]} 30. e6 {[%clk 0:00:11.7]} 30... Qe7 {[%clk
0:00:13]} 31. Nc6 {[%clk 0:00:11.9]} 31... Qf6 {[%clk 0:00:14.2]} 32. g4 {[%clk
0:00:11]} 32... fxg4 {[%clk 0:00:14.3]} 33. hxg4 {[%clk 0:00:09.6]} 33... Rxd5
{[%clk 0:00:12.5]} 34. Qxe4 {[%clk 0:00:08.4]} 34... Rd2 {[%clk 0:00:13.3]} 35.
e7 {[%clk 0:00:09]} 35... Re8 {[%clk 0:00:13.3]} 36. Qe6+ {[%clk 0:00:10.1]}
36... Qxe6 {[%clk 0:00:13.9]} 37. Rxe6 {[%clk 0:00:12]} 37... Rxa2 {[%clk
0:00:14]} 38. Rbe1 {[%clk 0:00:11.4]} 38... Rc2 {[%clk 0:00:14.1]} 39. g5 {[%clk
0:00:12.5]} 39... g6 {[%clk 0:00:14.2]} 40. f5 {[%clk 0:00:12.3]} 40... gxf5
{[%clk 0:00:13.3]} 41. Nd4 {[%clk 0:00:13.7]} 41... Rxc3 {[%clk 0:00:13.8]} 42.
Nxf5 {[%clk 0:00:15.3]} 42... Kf7 {[%clk 0:00:13.5]} 43. Rf6+ {[%clk 0:00:16]}
43... Kg8 {[%clk 0:00:13.3]} 44. Rf1 {[%clk 0:00:16.4]} 44... Rc5 {[%clk
0:00:12.9]} 45. Rf8+ {[%clk 0:00:17.6]} 45... Rxf8 {[%clk 0:00:13.4]} 46. Nh6+
{[%clk 0:00:18.9]} 46... Kg7 {[%clk 0:00:12.9]} 47. exf8=Q+ {[%clk 0:00:19.7]}
47... Kg6 {[%clk 0:00:14.2]} 48. Qf7+ {[%clk 0:00:21]} 48... Kxg5 {[%clk
0:00:15.4]} 49. Rf5+ {[%clk 0:00:21.8]} 49... Kxh6 {[%clk 0:00:16]} 50. Qh5+
{[%clk 0:00:21.3]} 50... Kg7 {[%clk 0:00:16.8]} 51. Rf7+ {[%clk 0:00:22.9]}
51... Kg8 {[%clk 0:00:17.1]} 52. Qxh7# {[%clk 0:00:24.8]} 1-0

[Event "*** Titled Tuesday 3|2 Blitz"]
[Site "Chess.com"]
[Date "2016.05.03"]
[Round "9"]
[White "hypert"]
[Black "the_drake"]
[Result "0-1"]
[WhiteElo "2326"]
[BlackElo "2193"]
[TimeControl "180+2"]
[EndTime "13:00:28 PDT"]
[Termination "the_drake won by resignation"]

1. e4 {[%clk 0:03:01.9]} 1... e5 {[%clk 0:02:59.5]} 2. Nf3 {[%clk 0:03:01.6]}
2... Nc6 {[%clk 0:02:59.5]} 3. Bb5 {[%clk 0:02:50.5]} 3... a6 {[%clk 0:02:40.9]}
4. Ba4 {[%clk 0:02:51.1]} 4... Nf6 {[%clk 0:02:34.2]} 5. O-O {[%clk 0:02:44.4]}
5... Nxe4 {[%clk 0:02:30.7]} 6. d4 {[%clk 0:02:44.1]} 6... b5 {[%clk 0:02:28]}
7. Bb3 {[%clk 0:02:44.4]} 7... d5 {[%clk 0:02:29.5]} 8. dxe5 {[%clk 0:02:45.6]}
8... Be6 {[%clk 0:02:30.6]} 9. c3 {[%clk 0:02:43.5]} 9... Bc5 {[%clk 0:02:32.1]}
10. Nbd2 {[%clk 0:02:43.7]} 10... O-O {[%clk 0:02:30.9]} 11. Bc2 {[%clk
0:02:39.1]} 11... Nxf2 {[%clk 0:02:31.2]} 12. Rxf2 {[%clk 0:02:38.3]} 12... f6
{[%clk 0:02:31.5]} 13. Nb3 {[%clk 0:02:33.6]} 13... Bxf2+ {[%clk 0:02:29.6]} 14.
Kxf2 {[%clk 0:02:34.4]} 14... fxe5 {[%clk 0:02:31.2]} 15. Kg1 {[%clk 0:02:32.2]}
15... e4 {[%clk 0:02:31.9]} 16. Nfd4 {[%clk 0:02:31.6]} 16... Qf6 {[%clk
0:02:28]} 17. Be3 {[%clk 0:02:25.2]} 17... Ne5 {[%clk 0:02:22]} 18. Nxe6 {[%clk
0:02:18.8]} 18... Qxe6 {[%clk 0:02:20.3]} 19. Nd4 {[%clk 0:02:19.6]} 19... Qd7
{[%clk 0:02:16.2]} 20. b4 {[%clk 0:02:17.5]} 20... c6 {[%clk 0:02:16]} 21. a4
{[%clk 0:02:03.4]} 21... Rae8 {[%clk 0:02:03.4]} 22. axb5 {[%clk 0:02:03.1]}
22... axb5 {[%clk 0:01:57.9]} 23. Qe2 {[%clk 0:02:04]} 23... h6 {[%clk
0:01:47.3]} 24. Bf2 {[%clk 0:01:58.3]} 24... Rf7 {[%clk 0:01:47.6]} 25. Bg3
{[%clk 0:01:58.4]} 25... Ng4 {[%clk 0:01:45.7]} 26. h3 {[%clk 0:01:57.8]} 26...
Nf6 {[%clk 0:01:45.8]} 27. Nb3 {[%clk 0:01:39.1]} 27... Ref8 {[%clk 0:01:36.8]}
28. Nc5 {[%clk 0:01:35]} 28... Qe8 {[%clk 0:01:25.4]} 29. Bb3 {[%clk 0:01:20.2]}
29... Nd7 {[%clk 0:01:22.5]} 30. Nb7 {[%clk 0:01:17.3]} 30... Qe6 {[%clk
0:01:17.5]} 31. Nc5 {[%clk 0:01:10.9]} 31... Nxc5 {[%clk 0:01:16.4]} 32. bxc5
{[%clk 0:01:12.8]} 32... Rf5 {[%clk 0:01:14]} 33. Ra7 {[%clk 0:01:10.2]} 33...
Rg5 {[%clk 0:01:14.1]} 34. Kh2 {[%clk 0:01:05.3]} 34... Qg6 {[%clk 0:01:13.6]}
35. Bh4 {[%clk 0:00:40.9]} 35... Rgf5 {[%clk 0:01:05.2]} 36. Re7 {[%clk
0:00:38.5]} 36... Rf4 {[%clk 0:01:02.6]} 37. Bg3 {[%clk 0:00:37.3]} 37... R4f5
{[%clk 0:01:01.1]} 38. Rxe4 {[%clk 0:00:34.9]} 38... Rf2 {[%clk 0:00:47.8]} 39.
Bxf2 {[%clk 0:00:33.3]} 39... Rxf2 {[%clk 0:00:46.1]} 40. Re8+ {[%clk
0:00:29.1]} 40... Rf8 {[%clk 0:00:44.3]} 41. Qe6+ {[%clk 0:00:24.3]} 41... Qxe6
{[%clk 0:00:42.6]} 42. Rxe6 {[%clk 0:00:26.2]} 42... Rc8 {[%clk 0:00:43]} 43.
Bc2 {[%clk 0:00:25.3]} 43... Kf7 {[%clk 0:00:43]} 44. Rd6 {[%clk 0:00:26.3]}
44... Ke7 {[%clk 0:00:43.1]} 45. Bf5 {[%clk 0:00:25.7]} 45... Rc7 {[%clk
0:00:43]} 46. g4 {[%clk 0:00:26.4]} 46... Ra7 {[%clk 0:00:37.4]} 47. Rxc6 {[%clk
0:00:26.4]} 47... Ra3 {[%clk 0:00:37.5]} 48. Rb6 {[%clk 0:00:24]} 48... Rxc3
{[%clk 0:00:37.4]} 49. Rxb5 {[%clk 0:00:23.4]} 49... d4 {[%clk 0:00:38.4]} 50.
Rb7+ {[%clk 0:00:19.5]} 50... Kf6 {[%clk 0:00:38.7]} 51. Rb6+ {[%clk 0:00:18.9]}
51... Kg5 {[%clk 0:00:39.7]} 52. c6 {[%clk 0:00:19.9]} 52... Kh4 {[%clk
0:00:35.7]} 53. Bd7 {[%clk 0:00:20.8]} 53... d3 {[%clk 0:00:35.8]} 54. Rb1
{[%clk 0:00:19.8]} 54... Rc2+ {[%clk 0:00:35.9]} 55. Kg1 {[%clk 0:00:19.3]}
55... d2 {[%clk 0:00:37]} 56. Rf1 {[%clk 0:00:18.2]} 56... Rc1 {[%clk
0:00:36.9]} 57. c7 {[%clk 0:00:19.4]} 57... Rxf1+ {[%clk 0:00:37.2]} 58. Kxf1
{[%clk 0:00:20.1]} 58... d1=Q+ {[%clk 0:00:39.1]} 59. Kg2 {[%clk 0:00:21.2]}
59... Qc2+ {[%clk 0:00:40]} 60. Kg1 {[%clk 0:00:22.5]} 60... Kg3 {[%clk
0:00:40.9]} 0-1

[Event "*** Titled Tuesday 3|2 Blitz"]
[Site "Chess.com"]
[Date "2016.05.03"]
[Round "9"]
[White "ChessWarrior7197"]
[Black "sorito"]
[Result "1-0"]
[WhiteElo "2479"]
[BlackElo "2192"]
[TimeControl "180+2"]
[EndTime "13:00:56 PDT"]
[Termination "ChessWarrior7197 won by checkmate"]

1. Nf3 {[%clk 0:03:01.9]} 1... b6 {[%clk 0:03:00]} 2. g3 {[%clk 0:03:00.9]} 2...
Bb7 {[%clk 0:03:00.2]} 3. Bg2 {[%clk 0:03:01.3]} 3... g5 {[%clk 0:03:01.3]} 4.
h3 {[%clk 0:02:57.2]} 4... h6 {[%clk 0:03:02.1]} 5. d3 {[%clk 0:02:58.2]} 5...
Bg7 {[%clk 0:03:02.5]} 6. e4 {[%clk 0:02:59.3]} 6... c5 {[%clk 0:03:03.2]} 7.
Nc3 {[%clk 0:02:58.5]} 7... Nc6 {[%clk 0:03:00.6]} 8. Be3 {[%clk 0:02:58.8]}
8... d6 {[%clk 0:03:01.1]} 9. d4 {[%clk 0:02:58.8]} 9... cxd4 {[%clk 0:03:01.8]}
10. Nxd4 {[%clk 0:02:59.7]} 10... Nxd4 {[%clk 0:02:54.5]} 11. Bxd4 {[%clk
0:03:00.5]} 11... Nf6 {[%clk 0:02:45.5]} 12. O-O {[%clk 0:03:00.6]} 12... Qd7
{[%clk 0:02:28]} 13. e5 {[%clk 0:02:56.2]} 13... dxe5 {[%clk 0:02:26.8]} 14.
Bxe5 {[%clk 0:02:56.9]} 14... Bxg2 {[%clk 0:02:11.5]} 15. Kxg2 {[%clk
0:02:57.9]} 15... Qb7+ {[%clk 0:02:11.1]} 16. Qf3 {[%clk 0:02:51.9]} 16... O-O-O
{[%clk 0:02:06.7]} 17. Qxb7+ {[%clk 0:02:42.6]} 17... Kxb7 {[%clk 0:02:07.2]}
18. Rfd1 {[%clk 0:02:43.7]} 18... Nh5 {[%clk 0:02:07.4]} 19. Bxg7 {[%clk
0:02:42.8]} 19... Nxg7 {[%clk 0:02:08.7]} 20. Nd5 {[%clk 0:02:42.4]} 20... Nf5
{[%clk 0:02:08.4]} 21. g4 {[%clk 0:02:38.7]} 21... Nh4+ {[%clk 0:02:09.3]} 22.
Kg3 {[%clk 0:02:40]} 22... Rd7 {[%clk 0:02:06.6]} 23. Ne3 {[%clk 0:02:26.4]}
23... Rc7 {[%clk 0:01:59.9]} 24. f4 {[%clk 0:02:24.6]} 24... e6 {[%clk
0:01:55.3]} 25. Rd3 {[%clk 0:02:19.6]} 25... Ng6 {[%clk 0:01:56.2]} 26. f5
{[%clk 0:02:17.1]} 26... Nf4 {[%clk 0:01:57.1]} 27. Rd2 {[%clk 0:02:16.1]} 27...
Re8 {[%clk 0:01:57]} 28. Rad1 {[%clk 0:02:14.6]} 28... a5 {[%clk 0:01:43]} 29.
c3 {[%clk 0:02:13.4]} 29... a4 {[%clk 0:01:31.6]} 30. a3 {[%clk 0:02:12.2]}
30... b5 {[%clk 0:01:32]} 31. fxe6 {[%clk 0:02:11.3]} 31... fxe6 {[%clk
0:01:32.7]} 32. Rd7 {[%clk 0:02:10.7]} 32... Re7 {[%clk 0:01:34.2]} 33. Rd8
{[%clk 0:02:09.1]} 33... Kc6 {[%clk 0:01:34.5]} 34. h4 {[%clk 0:02:02.3]} 34...
Rcd7 {[%clk 0:01:34.5]} 35. R1xd7 {[%clk 0:01:48.5]} 35... Rxd7 {[%clk
0:01:34.6]} 36. Rc8+ {[%clk 0:01:28]} 36... Kb6 {[%clk 0:01:25.2]} 37. hxg5
{[%clk 0:01:28.6]} 37... hxg5 {[%clk 0:01:25.5]} 38. Rg8 {[%clk 0:01:28.8]}
38... Rd3 {[%clk 0:00:56.8]} 39. Kf2 {[%clk 0:01:29.2]} 39... Rd2+ {[%clk
0:00:57.3]} 40. Kf3 {[%clk 0:01:29.8]} 40... Nd3 {[%clk 0:00:37.7]} 41. Rxg5
{[%clk 0:01:23.8]} 41... Rxb2 {[%clk 0:00:38.7]} 42. Rg8 {[%clk 0:01:18]} 42...
Rb3 {[%clk 0:00:35.6]} 43. g5 {[%clk 0:01:19.4]} 43... Rxc3 {[%clk 0:00:36.8]}
44. Re8 {[%clk 0:00:59.9]} 44... Ne5+ {[%clk 0:00:35.8]} 45. Ke4 {[%clk
0:00:59.9]} 45... Nf7 {[%clk 0:00:34.5]} 46. Rxe6+ {[%clk 0:00:59.1]} 46... Kc5
{[%clk 0:00:36]} 47. Kf4 {[%clk 0:00:29.6]} 47... Nxg5 {[%clk 0:00:35.4]} 48.
Kxg5 {[%clk 0:00:31.1]} 48... Rxa3 {[%clk 0:00:36]} 49. Kf4 {[%clk 0:00:32.1]}
49... Rd3 {[%clk 0:00:35.7]} 50. Re5+ {[%clk 0:00:26.6]} 50... Kc6 {[%clk
0:00:36.5]} 51. Ke4 {[%clk 0:00:27.4]} 51... Rd7 {[%clk 0:00:37.2]} 52. Nc2
{[%clk 0:00:27.4]} 52... Rd2 {[%clk 0:00:33.7]} 53. Nd4+ {[%clk 0:00:28.3]}
53... Kb6 {[%clk 0:00:23.4]} 54. Rxb5+ {[%clk 0:00:29]} 54... Ka6 {[%clk
0:00:24.6]} 55. Rb4 {[%clk 0:00:29.6]} 55... Ka5 {[%clk 0:00:24.9]} 56. Nc6+
{[%clk 0:00:30.2]} 56... Ka6 {[%clk 0:00:23.8]} 57. Ke3 {[%clk 0:00:30.9]} 57...
Rd6 {[%clk 0:00:23.3]} 58. Ne5 {[%clk 0:00:28.2]} 58... Ka5 {[%clk 0:00:22.2]}
59. Rb8 {[%clk 0:00:28.8]} 59... Re6 {[%clk 0:00:22.7]} 60. Kd4 {[%clk
0:00:29.3]} 60... Rd6+ {[%clk 0:00:20.8]} 61. Kc5 {[%clk 0:00:27.3]} 61... Re6
{[%clk 0:00:14.4]} 62. Nc6+ {[%clk 0:00:26.8]} 62... Ka6 {[%clk 0:00:14.7]} 63.
Rb6# {[%clk 0:00:26.9]} 1-0

[Event "*** Titled Tuesday 3|2 Blitz"]
[Site "Chess.com"]
[Date "2016.05.03"]
[Round "9"]
[White "oskariot"]
[Black "Zazuliak"]
[Result "1/2-1/2"]
[WhiteElo "2432"]
[BlackElo "2379"]
[TimeControl "180+2"]
[EndTime "13:01:14 PDT"]
[Termination "Game drawn by agreement"]

1. e4 {[%clk 0:03:01.9]} 1... c5 {[%clk 0:02:59.5]} 2. Nf3 {[%clk 0:03:02.9]}
2... g6 {[%clk 0:02:57.3]} 3. d4 {[%clk 0:03:04]} 3... cxd4 {[%clk 0:02:59.2]}
4. Nxd4 {[%clk 0:03:05.9]} 4... Bg7 {[%clk 0:03:00.2]} 5. c4 {[%clk 0:03:07.1]}
5... Nc6 {[%clk 0:03:01]} 6. Be3 {[%clk 0:03:08.7]} 6... Nf6 {[%clk 0:03:01.9]}
7. Nc3 {[%clk 0:03:10.4]} 7... O-O {[%clk 0:03:03.3]} 8. Be2 {[%clk 0:03:12]}
8... d6 {[%clk 0:03:04.3]} 9. O-O {[%clk 0:03:13.7]} 9... Bd7 {[%clk 0:03:03.6]}
10. Qd2 {[%clk 0:03:15.2]} 10... Nxd4 {[%clk 0:03:04.5]} 11. Bxd4 {[%clk
0:03:16.7]} 11... Bc6 {[%clk 0:03:05.9]} 12. f3 {[%clk 0:03:17.5]} 12... a5
{[%clk 0:03:06.2]} 13. b3 {[%clk 0:03:18.5]} 13... Nd7 {[%clk 0:03:07]} 14. Bf2
{[%clk 0:03:20.2]} 14... Nc5 {[%clk 0:03:05.7]} 15. Rab1 {[%clk 0:03:19.4]}
15... Be5 {[%clk 0:02:42.9]} 16. Rfd1 {[%clk 0:02:59.8]} 16... e6 {[%clk
0:02:39.3]} 17. Nb5 {[%clk 0:02:59.3]} 17... Bxb5 {[%clk 0:02:36.5]} 18. cxb5
{[%clk 0:02:59.6]} 18... Qf6 {[%clk 0:02:18.4]} 19. Bd4 {[%clk 0:02:55.1]} 19...
Rfd8 {[%clk 0:02:10.7]} 20. Bxe5 {[%clk 0:02:52.5]} 20... dxe5 {[%clk 0:02:03]}
21. Qe3 {[%clk 0:02:52.7]} 21... b6 {[%clk 0:02:03.3]} 22. Bc4 {[%clk
0:02:49.8]} 22... Rxd1+ {[%clk 0:02:01.1]} 23. Rxd1 {[%clk 0:02:49.8]} 23... Rd8
{[%clk 0:02:02.8]} 24. Qe2 {[%clk 0:02:49]} 24... Rd4 {[%clk 0:01:57.6]} 25. a3
{[%clk 0:02:27.1]} 25... Qd8 {[%clk 0:01:57.3]} 26. Rc1 {[%clk 0:01:41.4]} 26...
Rd2 {[%clk 0:01:54.1]} 27. Qe3 {[%clk 0:01:42.4]} 27... Rd1+ {[%clk 0:01:48.4]}
28. Rxd1 {[%clk 0:01:36.5]} 28... Qxd1+ {[%clk 0:01:48.9]} 29. Kf2 {[%clk
0:01:34.4]} 29... Qc2+ {[%clk 0:01:21.5]} 30. Kg3 {[%clk 0:01:31.6]} 30... Kg7
{[%clk 0:01:19.3]} 31. h4 {[%clk 0:01:25.6]} 31... h6 {[%clk 0:01:18.9]} 32. b4
{[%clk 0:01:09.2]} 32... axb4 {[%clk 0:01:02.1]} 33. axb4 {[%clk 0:01:09.1]}
33... Qxc4 {[%clk 0:01:02.9]} 34. bxc5 {[%clk 0:01:09.7]} 34... bxc5 {[%clk
0:01:02.3]} 35. b6 {[%clk 0:01:02.5]} 35... Qb5 {[%clk 0:01:00.7]} 36. b7 {[%clk
0:01:03.7]} 36... Qxb7 {[%clk 0:01:01.4]} 37. Qxc5 {[%clk 0:01:04.7]} 37... Qb2
{[%clk 0:01:02.4]} 38. Qc7 {[%clk 0:00:54.4]} 38... Qd4 {[%clk 0:01:02.2]} 39.
Qb8 {[%clk 0:00:55.2]} 39... Qa1 {[%clk 0:01:01.7]} 40. Qc7 {[%clk 0:00:56]}
40... Qe1+ {[%clk 0:01:01.9]} 41. Kh3 {[%clk 0:00:56.1]} 41... Qh1+ {[%clk
0:01:02.1]} 42. Kg3 {[%clk 0:00:57.1]} 42... Qe1+ {[%clk 0:01:02.4]} 43. Kh3
{[%clk 0:00:58.1]} 43... Qa1 {[%clk 0:01:03.4]} 44. Kg3 {[%clk 0:00:59]} 44...
Qd4 {[%clk 0:01:03.2]} 45. Qb8 {[%clk 0:00:59.8]} 45... Qc5 {[%clk 0:00:57.5]}
46. Kh3 {[%clk 0:01:00.6]} 46... g5 {[%clk 0:00:54]} 47. hxg5 {[%clk 0:01:01.6]}
47... hxg5 {[%clk 0:00:54.8]} 48. Qd8 {[%clk 0:00:58.2]} 48... Qe3 {[%clk
0:00:54.8]} 49. Kg3 {[%clk 0:00:50.2]} 49... Qf4+ {[%clk 0:00:54.7]} 50. Kf2
{[%clk 0:00:51.1]} 50... g4 {[%clk 0:00:55.2]} 51. Qe7 {[%clk 0:00:41.8]} 51...
g3+ {[%clk 0:00:55.3]} 52. Ke2 {[%clk 0:00:41.3]} 52... Qc1 {[%clk 0:00:56.4]}
53. Qh4 {[%clk 0:00:23.6]} 53... Qc2+ {[%clk 0:00:55.3]} 54. Ke3 {[%clk
0:00:18.6]} 54... Qc1+ {[%clk 0:00:52.4]} 55. Ke2 {[%clk 0:00:19.2]} 55... Qf4
{[%clk 0:00:52.4]} 56. Qd8 {[%clk 0:00:19.4]} 56... Qh6 {[%clk 0:00:51.6]} 57.
Qe7 {[%clk 0:00:17.4]} 57... Qf6 {[%clk 0:00:50.4]} 58. Qd6 {[%clk 0:00:18.7]}
58... Qg5 {[%clk 0:00:50.8]} 59. Qc7 {[%clk 0:00:16.9]} 59... Kg6 {[%clk
0:00:47.6]} 60. Qc8 {[%clk 0:00:17.9]} 60... Kg7 {[%clk 0:00:47.6]} 61. Qc7
{[%clk 0:00:19.3]} 61... Qh5 {[%clk 0:00:47.6]} 62. Qd6 {[%clk 0:00:17.4]} 62...
Kg6 {[%clk 0:00:45.9]} 63. Qd8 {[%clk 0:00:18.1]} 63... Kg7 {[%clk 0:00:37.4]}
64. Qd6 {[%clk 0:00:19.2]} 64... Qg5 {[%clk 0:00:37.3]} 65. Qc7 {[%clk
0:00:19.9]} 65... Qf6 {[%clk 0:00:37.1]} 66. Qd6 {[%clk 0:00:17.4]} 66... Qf4
{[%clk 0:00:38]} 67. Qc7 {[%clk 0:00:18.3]} 67... Kg6 {[%clk 0:00:38.5]} 68. Qc8
{[%clk 0:00:19.5]} 68... Kg7 {[%clk 0:00:38.1]} 69. Qc7 {[%clk 0:00:20.8]} 69...
Qg5 {[%clk 0:00:38.4]} 70. Qd6 {[%clk 0:00:21.4]} 70... Qf6 {[%clk 0:00:39.3]}
71. Qc7 {[%clk 0:00:22.5]} 71... Qg5 {[%clk 0:00:38.9]} 72. Qd6 {[%clk
0:00:23.6]} 72... Qf6 {[%clk 0:00:36.7]} 73. Qc7 {[%clk 0:00:24.5]} 1/2-1/2

[Event "*** Titled Tuesday 3|2 Blitz"]
[Site "Chess.com"]
[Date "2016.05.03"]
[Round "9"]
[White "smurfo"]
[Black "Zhani-Z"]
[Result "0-1"]
[WhiteElo "2509"]
[BlackElo "2190"]
[TimeControl "180+2"]
[EndTime "13:01:46 PDT"]
[Termination "Zhani-Z won by resignation"]

1. e4 {[%clk 0:03:01.9]} 1... e5 {[%clk 0:02:59.5]} 2. Nf3 {[%clk 0:03:01.2]}
2... Nc6 {[%clk 0:03:00.1]} 3. d4 {[%clk 0:03:02.1]} 3... exd4 {[%clk
0:03:00.7]} 4. Nxd4 {[%clk 0:03:04]} 4... Nf6 {[%clk 0:03:00.3]} 5. Nc3 {[%clk
0:03:03.7]} 5... Bb4 {[%clk 0:03:00.4]} 6. Nxc6 {[%clk 0:03:04.8]} 6... bxc6
{[%clk 0:03:00.2]} 7. Bd3 {[%clk 0:03:06.7]} 7... d5 {[%clk 0:03:01]} 8. exd5
{[%clk 0:03:08.6]} 8... O-O {[%clk 0:03:01.6]} 9. O-O {[%clk 0:03:10.5]} 9...
cxd5 {[%clk 0:03:01.8]} 10. h3 {[%clk 0:03:12.2]} 10... c6 {[%clk 0:03:01.2]}
11. Qf3 {[%clk 0:03:13.8]} 11... Bd6 {[%clk 0:02:57]} 12. Bg5 {[%clk 0:03:14.7]}
12... Rb8 {[%clk 0:02:52.5]} 13. Rab1 {[%clk 0:03:12]} 13... h6 {[%clk
0:02:29.4]} 14. Bxf6 {[%clk 0:03:12.3]} 14... Qxf6 {[%clk 0:02:30.4]} 15. Qxf6
{[%clk 0:03:13.1]} 15... gxf6 {[%clk 0:02:32]} 16. Ne2 {[%clk 0:03:10.3]} 16...
c5 {[%clk 0:02:30.6]} 17. b3 {[%clk 0:03:09.3]} 17... Be6 {[%clk 0:02:29.1]} 18.
c4 {[%clk 0:02:50]} 18... d4 {[%clk 0:02:29.3]} 19. f4 {[%clk 0:02:46.5]} 19...
a5 {[%clk 0:02:25.8]} 20. Ng3 {[%clk 0:02:44.9]} 20... a4 {[%clk 0:01:54.9]} 21.
Nh5 {[%clk 0:02:44.6]} 21... Be7 {[%clk 0:01:50.6]} 22. Rf3 {[%clk 0:02:43]}
22... Rb6 {[%clk 0:01:29.4]} 23. Rg3+ {[%clk 0:02:35.2]} 23... Kh8 {[%clk
0:01:30.5]} 24. Rg7 {[%clk 0:02:34.3]} 24... f5 {[%clk 0:01:29.1]} 25. Re1
{[%clk 0:02:23.6]} 25... Bf6 {[%clk 0:01:22.1]} 26. Rg3 {[%clk 0:02:09.3]} 26...
Bh4 {[%clk 0:01:21.9]} 27. bxa4 {[%clk 0:02:04.6]} 27... Bxg3 {[%clk 0:01:17.3]}
28. Nxg3 {[%clk 0:02:06.5]} 28... Ra8 {[%clk 0:01:10.1]} 29. Re5 {[%clk
0:02:01]} 29... Rxa4 {[%clk 0:00:36.7]} 30. Nxf5 {[%clk 0:02:01.6]} 30... Bxf5
{[%clk 0:00:34.2]} 31. Rxf5 {[%clk 0:01:58.7]} 31... Kg7 {[%clk 0:00:33]} 32.
Rxc5 {[%clk 0:01:58.6]} 32... Rxa2 {[%clk 0:00:33.7]} 33. Rd5 {[%clk 0:01:57.5]}
33... Rd2 {[%clk 0:00:34.2]} 34. Be4 {[%clk 0:01:54.5]} 34... Re6 {[%clk
0:00:31.7]} 35. Bf3 {[%clk 0:01:53.7]} 35... Re3 {[%clk 0:00:28.5]} 36. c5
{[%clk 0:01:52.1]} 36... Rc3 {[%clk 0:00:29.4]} 37. f5 {[%clk 0:01:44.9]} 37...
Kf6 {[%clk 0:00:28.2]} 38. h4 {[%clk 0:01:40.3]} 38... d3 {[%clk 0:00:24.3]} 39.
Kh2 {[%clk 0:01:24.6]} 39... Rdc2 {[%clk 0:00:19.6]} 40. c6 {[%clk 0:01:24.4]}
40... d2 {[%clk 0:00:18.2]} 41. Kg3 {[%clk 0:01:21.2]} 41... Rxc6 {[%clk
0:00:16.2]} 42. Rxd2 {[%clk 0:01:20.7]} 42... Rxd2 {[%clk 0:00:16.7]} 43. Bxc6
{[%clk 0:01:21.5]} 43... Kxf5 {[%clk 0:00:17.2]} 44. Bb7 {[%clk 0:01:22]} 44...
Rd3+ {[%clk 0:00:16.7]} 45. Bf3 {[%clk 0:01:18.7]} 45... Ke5 {[%clk 0:00:17]}
46. Kg4 {[%clk 0:01:19.2]} 46... Kf6 {[%clk 0:00:15]} 47. Kh5 {[%clk 0:01:17.7]}
47... Kg7 {[%clk 0:00:16]} 48. Be4 {[%clk 0:01:15.3]} 48... Rd4 {[%clk
0:00:16.7]} 49. Bf3 {[%clk 0:01:12.2]} 49... Rc4 {[%clk 0:00:17.7]} 50. g4
{[%clk 0:01:09.3]} 50... Rc5+ {[%clk 0:00:18.6]} 51. g5 {[%clk 0:01:10.1]} 51...
hxg5 {[%clk 0:00:20]} 52. hxg5 {[%clk 0:01:11]} 52... f6 {[%clk 0:00:21.6]} 53.
Kg4 {[%clk 0:01:12.1]} 53... Rxg5+ {[%clk 0:00:22.2]} 54. Kf4 {[%clk 0:01:13.5]}
54... Ra5 {[%clk 0:00:22.2]} 55. Be4 {[%clk 0:01:13.5]} 55... Kf7 {[%clk
0:00:21.4]} 56. Bc2 {[%clk 0:01:11.9]} 56... Ke7 {[%clk 0:00:20.7]} 57. Bd3
{[%clk 0:01:09.5]} 57... Rd5 {[%clk 0:00:21]} 58. Bc2 {[%clk 0:01:09.4]} 58...
Re5 {[%clk 0:00:19.7]} 59. Bb1 {[%clk 0:01:06.6]} 59... Re1 {[%clk 0:00:20.5]}
60. Bd3 {[%clk 0:00:52.1]} 60... Kd6 {[%clk 0:00:20.7]} 61. Kf5 {[%clk
0:00:45.9]} 61... Ke7 {[%clk 0:00:21]} 62. Kf4 {[%clk 0:00:44.6]} 62... Rd1
{[%clk 0:00:21]} 63. Bc2 {[%clk 0:00:36.2]} 63... Rf1+ {[%clk 0:00:17.9]} 64.
Ke4 {[%clk 0:00:37.4]} 64... f5+ {[%clk 0:00:15.9]} 65. Ke5 {[%clk 0:00:37.1]}
65... f4 {[%clk 0:00:16.7]} 66. Ke4 {[%clk 0:00:37.1]} 66... Kf6 {[%clk
0:00:17.6]} 67. Bd3 {[%clk 0:00:34.5]} 67... Rf2 {[%clk 0:00:17.9]} 68. Bb5
{[%clk 0:00:30]} 68... Kg5 {[%clk 0:00:17.5]} 69. Ba4 {[%clk 0:00:28.6]} 69...
Kg4 {[%clk 0:00:14.6]} 70. Bd1+ {[%clk 0:00:30.1]} 70... Kg3 {[%clk 0:00:15.6]}
71. Bh5 {[%clk 0:00:30.8]} 71... f3 {[%clk 0:00:13.9]} 72. Kd3 {[%clk
0:00:30.5]} 72... Rf1 {[%clk 0:00:14]} 0-1